[Event "Titled Tuesday Blitz May 9 Early 2023"]
[White "Molina, Roberto Junio Brito"]
[Black "Manukian, Artak"]
[WhiteFideId "2109450"]
[BlackFideId "13301373"]
[WhiteElo "2376"]
[BlackElo "2130"]
[Result "1-0"]
[Round "01"]
[TimeControl "180+2"]
[Date "2023.05.09"]
[WhiteClock "0:00:24"]
[BlackClock "0:00:24"]

1. d4 {[%clk 0:02:57]}  d5 {[%clk 0:02:58]} 2. c4 {[%clk 0:02:57]}  dxc4 {[%clk 0:02:57]} 3. Nf3 {[%clk 0:02:56]}  Nf6 {[%clk 0:02:57]} 4. e3 {[%clk 0:02:57]}  e6 {[%clk 0:02:57]} 5. Bxc4 {[%clk 0:02:57]}  c5 {[%clk 0:02:57]} 6. dxc5 {[%clk 0:02:57]}  Bxc5 {[%clk 0:02:57]} 7. Qxd8+ {[%clk 0:02:57]}  Kxd8 {[%clk 0:02:57]} 8. a3 {[%clk 0:02:57]}  Ke7 {[%clk 0:02:58]} 9. b4 {[%clk 0:02:57]}  Bb6 {[%clk 0:02:56]} 10. Bb2 {[%clk 0:02:57]}  Bd7 {[%clk 0:02:56]} 11. Nc3 {[%clk 0:02:56]}  Rc8 {[%clk 0:02:56]} 12. Bb3 {[%clk 0:02:55]}  Nc6 {[%clk 0:02:47]} 13. Na4 {[%clk 0:02:52]}  Bc7 {[%clk 0:02:30]} 14. Nc5 {[%clk 0:02:51]}  b6 {[%clk 0:02:28]} 15. Nxd7 {[%clk 0:02:37]}  Kxd7 {[%clk 0:02:29]} 16. O-O-O+ {[%clk 0:02:35]}  Ke7 {[%clk 0:02:27]} 17. Kb1 {[%clk 0:02:30]}  Ne4 {[%clk 0:02:21]} 18. Rc1 {[%clk 0:02:29]}  Bd6 {[%clk 0:02:11]} 19. Rc2 {[%clk 0:02:25]}  Nd8 {[%clk 0:02:06]} 20. Rhc1 {[%clk 0:02:20]}  Rxc2 {[%clk 0:02:04]} 21. Rxc2 {[%clk 0:02:21]}  f6 {[%clk 0:02:01]} 22. g3 {[%clk 0:01:54]}  Nf7 {[%clk 0:01:56]} 23. Nd4 {[%clk 0:01:54]}  Nd8 {[%clk 0:01:46]} 24. f3 {[%clk 0:01:35]}  Ng5 {[%clk 0:01:42]} 25. h4 {[%clk 0:01:31]}  Ngf7 {[%clk 0:01:42]} 26. f4 {[%clk 0:01:29]}  g6 {[%clk 0:01:39]} 27. h5 {[%clk 0:01:18]}  e5 {[%clk 0:01:34]} 28. Nb5 {[%clk 0:01:01]}  Ne6 {[%clk 0:01:27]} 29. hxg6 {[%clk 0:01:00]}  hxg6 {[%clk 0:01:27]} 30. Rh2 {[%clk 0:00:47]}  a6 {[%clk 0:01:05]} 31. Nxd6 {[%clk 0:00:44]}  Kxd6 {[%clk 0:01:05]} 32. Bc2 {[%clk 0:00:29]}  Nf8 {[%clk 0:00:27]} 33. Bd3 {[%clk 0:00:26]}  b5 {[%clk 0:00:22]} 34. Rd2 {[%clk 0:00:21]}  Ke7 {[%clk 0:00:22]} 35. Be4 {[%clk 0:00:20]}  Rd8 {[%clk 0:00:22]} 36. Rc2 {[%clk 0:00:20]}  Nd6 {[%clk 0:00:20]} 37. Bd3 {[%clk 0:00:16]}  e4 {[%clk 0:00:18]} 38. Bf1 {[%clk 0:00:12]}  f5 {[%clk 0:00:19]} 39. Bd4 {[%clk 0:00:11]}  Ne6 {[%clk 0:00:19]} 40. Bb6 {[%clk 0:00:11]}  Rc8 {[%clk 0:00:19]} 41. Kb2 {[%clk 0:00:06]}  Rxc2+ {[%clk 0:00:17]} 42. Kxc2 {[%clk 0:00:07]}  Kd7 {[%clk 0:00:16]} 43. Kc3 {[%clk 0:00:07]}  Kc6 {[%clk 0:00:16]} 44. Bd4 {[%clk 0:00:07]}  Nc7 {[%clk 0:00:16]} 45. Be2 {[%clk 0:00:07]}  Nd5+ {[%clk 0:00:16]} 46. Kb3 {[%clk 0:00:07]}  Nb6 {[%clk 0:00:15]} 47. Bxb6 {[%clk 0:00:06]}  Kxb6 {[%clk 0:00:15]} 48. Kc3 {[%clk 0:00:07]}  Kc6 {[%clk 0:00:15]} 49. Kd4 {[%clk 0:00:07]}  Nf7 {[%clk 0:00:14]} 50. g4 {[%clk 0:00:08]}  Kd6 {[%clk 0:00:14]} 51. gxf5 {[%clk 0:00:07]}  gxf5 {[%clk 0:00:15]} 52. Bh5 {[%clk 0:00:08]}  Nd8 {[%clk 0:00:15]} 53. Bg6 {[%clk 0:00:07]}  Ne6+ {[%clk 0:00:15]} 54. Kc3 {[%clk 0:00:08]}  Ng7 {[%clk 0:00:16]} 55. Kb3 {[%clk 0:00:07]}  Kd5 {[%clk 0:00:16]} 56. Bf7+ {[%clk 0:00:07]}  Kc6 {[%clk 0:00:16]} 57. Bg6 {[%clk 0:00:06]}  Kd5 {[%clk 0:00:16]} 58. Kc3 {[%clk 0:00:07]}  Ke6 {[%clk 0:00:15]} 59. Kd4 {[%clk 0:00:07]}  Kd6 {[%clk 0:00:16]} 60. Bf7 {[%clk 0:00:06]}  Ke7 {[%clk 0:00:14]} 61. Bd5 {[%clk 0:00:06]}  Kd6 {[%clk 0:00:14]} 62. Bb7 {[%clk 0:00:07]}  Ne6+ {[%clk 0:00:15]} 63. Kc3 {[%clk 0:00:06]}  Nc7 {[%clk 0:00:15]} 64. Bc8 {[%clk 0:00:06]}  Nd5+ {[%clk 0:00:15]} 65. Kd4 {[%clk 0:00:06]}  Ne7 {[%clk 0:00:14]} 66. Bxa6 {[%clk 0:00:06]}  Kc6 {[%clk 0:00:13]} 67. Ke5 {[%clk 0:00:05]}  Kb6 {[%clk 0:00:12]} 68. Ke6 {[%clk 0:00:04]}  Nc6 {[%clk 0:00:12]} 69. Bc8 {[%clk 0:00:05]}  Nd8+ {[%clk 0:00:13]} 70. Kxf5 {[%clk 0:00:05]}  Nc6 {[%clk 0:00:12]} 71. Bd7 {[%clk 0:00:05]}  Nb8 {[%clk 0:00:10]} 72. Be8 {[%clk 0:00:05]}  Na6 {[%clk 0:00:11]} 73. Kxe4 {[%clk 0:00:05]}  Nc7 {[%clk 0:00:11]} 74. Bd7 {[%clk 0:00:06]}  Na6 {[%clk 0:00:10]} 75. Ke5 {[%clk 0:00:06]}  Kc7 {[%clk 0:00:11]} 76. Bxb5 {[%clk 0:00:06]}  Nb8 {[%clk 0:00:12]} 77. Kd4 {[%clk 0:00:05]}  Kb6 {[%clk 0:00:13]} 78. Kc4 {[%clk 0:00:06]}  Kc7 {[%clk 0:00:12]} 79. a4 {[%clk 0:00:07]}  Nd7 {[%clk 0:00:13]} 80. Bxd7 {[%clk 0:00:06]}  Kxd7 {[%clk 0:00:13]} 81. e4 {[%clk 0:00:07]}  Kd6 {[%clk 0:00:14]} 82. b5 {[%clk 0:00:08]}  Kc7 {[%clk 0:00:14]} 83. Kb4 {[%clk 0:00:09]}  Kb6 {[%clk 0:00:15]} 84. a5+ {[%clk 0:00:10]}  Kb7 {[%clk 0:00:16]} 85. Kc5 {[%clk 0:00:11]}  Ka8 {[%clk 0:00:17]} 86. e5 {[%clk 0:00:12]}  Kb7 {[%clk 0:00:18]} 87. f5 {[%clk 0:00:13]}  Kc7 {[%clk 0:00:18]} 88. f6 {[%clk 0:00:14]}  Kd7 {[%clk 0:00:19]} 89. Kd5 {[%clk 0:00:14]}  Ke8 {[%clk 0:00:19]} 90. e6 {[%clk 0:00:15]}  Kf8 {[%clk 0:00:20]} 91. Kd6 {[%clk 0:00:16]}  Kg8 {[%clk 0:00:20]} 92. Kc7 {[%clk 0:00:17]}  Kh7 {[%clk 0:00:21]} 93. Kd7 {[%clk 0:00:18]}  Kg6 {[%clk 0:00:22]} 94. f7 {[%clk 0:00:19]}  Kf6 {[%clk 0:00:22]} 95. f8=Q+ {[%clk 0:00:18]}  Ke5 {[%clk 0:00:23]} 96. Qd6+ {[%clk 0:00:19]}  Kf6 {[%clk 0:00:24]} 97. e7+ {[%clk 0:00:20]}  Kf7 {[%clk 0:00:24]} 98. Kc6 {[%clk 0:00:21]}  Ke8 {[%clk 0:00:24]} 99. Kc7 {[%clk 0:00:22]}  Kf7 {[%clk 0:00:25]} 100. Kd8 {[%clk 0:00:23]}  Kg7 {[%clk 0:00:25]} 101. Qd7 {[%clk 0:00:23]}  Kf6 {[%clk 0:00:25]} 102. e8=Q {[%clk 0:00:24]}  Kg5 {[%clk 0:00:24]} 103. Qe5+ {[%clk 0:00:24]} 1-0


[Site "https://www.chess.com"]

[Event "Titled Tuesday Blitz May 9 Early 2023"]
[White "Rodshtein, Maxim"]
[Black "Pinto, Daniel"]
[WhiteFideId "2806851"]
[BlackFideId "3303144"]
[WhiteElo "2555"]
[BlackElo "2145"]
[Result "1-0"]
[Round "01"]
[TimeControl "180+2"]
[Date "2023.05.09"]
[WhiteClock "0:01:12"]
[BlackClock "0:00:09"]

1. e4 {[%clk 0:03:00]}  e5 {[%clk 0:02:52]} 2. Nf3 {[%clk 0:02:57]}  Nc6 {[%clk 0:02:52]} 3. Bb5 {[%clk 0:02:57]}  Nf6 {[%clk 0:02:52]} 4. d3 {[%clk 0:02:55]}  Be7 {[%clk 0:02:50]} 5. O-O {[%clk 0:02:54]}  d6 {[%clk 0:02:46]} 6. c4 {[%clk 0:02:47]}  O-O {[%clk 0:02:44]} 7. h3 {[%clk 0:02:47]}  Kh8 {[%clk 0:02:32]} 8. Nc3 {[%clk 0:02:45]}  Ng8 {[%clk 0:02:22]} 9. Bxc6 {[%clk 0:02:41]}  bxc6 {[%clk 0:02:22]} 10. d4 {[%clk 0:02:42]}  exd4 {[%clk 0:01:42]} 11. Nxd4 {[%clk 0:02:43]}  Qe8 {[%clk 0:01:28]} 12. Be3 {[%clk 0:02:35]}  Bf6 {[%clk 0:01:21]} 13. Qc2 {[%clk 0:02:27]}  Ne7 {[%clk 0:01:16]} 14. Rae1 {[%clk 0:02:26]}  c5 {[%clk 0:01:03]} 15. Nde2 {[%clk 0:02:23]}  Be6 {[%clk 0:00:56]} 16. b3 {[%clk 0:02:21]}  g6 {[%clk 0:00:35]} 17. f4 {[%clk 0:02:15]}  Qc8 {[%clk 0:00:30]} 18. Ng3 {[%clk 0:02:03]}  Bh4 {[%clk 0:00:30]} 19. Bf2 {[%clk 0:02:02]}  Nc6 {[%clk 0:00:29]} 20. Qd2 {[%clk 0:01:59]}  Bf6 {[%clk 0:00:23]} 21. f5 {[%clk 0:01:54]}  Bd7 {[%clk 0:00:19]} 22. Nd5 {[%clk 0:01:52]}  Be5 {[%clk 0:00:19]} 23. Qh6 {[%clk 0:01:38]}  gxf5 {[%clk 0:00:15]} 24. Nxf5 {[%clk 0:01:30]}  Bxf5 {[%clk 0:00:15]} 25. exf5 {[%clk 0:01:31]}  f6 {[%clk 0:00:12]} 26. Qh5 {[%clk 0:01:20]}  Qd7 {[%clk 0:00:12]} 27. Re4 {[%clk 0:01:19]}  Rg8 {[%clk 0:00:11]} 28. Rh4 {[%clk 0:01:17]}  Rg5 {[%clk 0:00:11]} 29. Qh6 {[%clk 0:01:16]}  Rxf5 {[%clk 0:00:10]} 30. g4 {[%clk 0:01:12]}  Rg5 {[%clk 0:00:10]} 31. Nxf6 {[%clk 0:01:11]}  Qg7 {[%clk 0:00:11]} 32. Qxh7+ {[%clk 0:01:11]}  Qxh7 {[%clk 0:00:09]} 33. Rxh7# {[%clk 0:01:12]} 1-0


[Site "https://www.chess.com"]

[Event "Titled Tuesday Blitz May 9 Early 2023"]
[White "Urbina Perez, Juan Antonio"]
[Black "Visakh N R"]
[WhiteFideId "2217368"]
[BlackFideId "25012223"]
[WhiteElo "2197"]
[BlackElo "2466"]
[Result "0-1"]
[Round "01"]
[TimeControl "180+2"]
[Date "2023.05.09"]
[WhiteClock "0:00:09"]
[BlackClock "0:00:29"]

1. c4 {[%clk 0:02:56]}  e6 {[%clk 0:02:55]} 2. d4 {[%clk 0:02:54]}  f5 {[%clk 0:02:52]} 3. Nc3 {[%clk 0:02:52]}  Nf6 {[%clk 0:02:52]} 4. Bg5 {[%clk 0:02:51]}  Be7 {[%clk 0:02:44]} 5. e3 {[%clk 0:02:48]}  O-O {[%clk 0:02:37]} 6. Bd3 {[%clk 0:02:47]}  c5 {[%clk 0:02:24]} 7. Nge2 {[%clk 0:02:40]}  b6 {[%clk 0:02:12]} 8. Qc2 {[%clk 0:02:31]}  Bb7 {[%clk 0:02:11]} 9. O-O {[%clk 0:02:21]}  Nh5 {[%clk 0:01:53]} 10. Bxe7 {[%clk 0:02:19]}  Qxe7 {[%clk 0:01:54]} 11. e4 {[%clk 0:02:12]}  Nc6 {[%clk 0:01:42]} 12. exf5 {[%clk 0:02:05]}  cxd4 {[%clk 0:01:37]} 13. Nb5 {[%clk 0:01:29]}  e5 {[%clk 0:01:18]} 14. Nc7 {[%clk 0:01:15]}  Nb4 {[%clk 0:01:04]} 15. Qd1 {[%clk 0:01:13]}  Rac8 {[%clk 0:01:02]} 16. Nd5 {[%clk 0:00:59]}  Nxd5 {[%clk 0:01:01]} 17. cxd5 {[%clk 0:01:00]}  e4 {[%clk 0:01:01]} 18. Bb5 {[%clk 0:00:52]}  d3 {[%clk 0:01:01]} 19. Ng3 {[%clk 0:00:50]}  Nxg3 {[%clk 0:01:00]} 20. hxg3 {[%clk 0:00:51]}  Bxd5 {[%clk 0:00:56]} 21. g4 {[%clk 0:00:43]}  Kh8 {[%clk 0:00:48]} 22. Qa4 {[%clk 0:00:40]}  a5 {[%clk 0:00:42]} 23. Rac1 {[%clk 0:00:37]}  Ba8 {[%clk 0:00:34]} 24. Bxd7 {[%clk 0:00:34]}  Rxc1 {[%clk 0:00:31]} 25. Rxc1 {[%clk 0:00:32]}  e3 {[%clk 0:00:32]} 26. fxe3 {[%clk 0:00:14]}  Qxe3+ {[%clk 0:00:31]} 27. Kh2 {[%clk 0:00:14]}  Qxc1 {[%clk 0:00:30]} 28. Qa3 {[%clk 0:00:14]}  Qc7+ {[%clk 0:00:30]} 29. Kg1 {[%clk 0:00:09]}  Qc5+ {[%clk 0:00:29]} 0-1


[Site "https://www.chess.com"]

[Event "Titled Tuesday Blitz May 9 Early 2023"]
[White "Papadiamandis, Elliot"]
[Black "feuervogel1000000"]
[WhiteFideId "36074160"]
[WhiteElo "2219"]
[BlackElo "2434"]
[Result "1-0"]
[Round "01"]
[TimeControl "180+2"]
[Date "2023.05.09"]
[WhiteClock "0:00:19"]
[BlackClock "0:00:07"]

1. e4 {[%clk 0:02:56]}  e5 {[%clk 0:02:59]} 2. Nf3 {[%clk 0:02:55]}  Nc6 {[%clk 0:02:59]} 3. Bc4 {[%clk 0:02:56]}  Nf6 {[%clk 0:02:58]} 4. d3 {[%clk 0:02:51]}  Bc5 {[%clk 0:02:58]} 5. c3 {[%clk 0:02:52]}  d6 {[%clk 0:02:57]} 6. Nbd2 {[%clk 0:02:52]}  a5 {[%clk 0:02:56]} 7. Bb3 {[%clk 0:02:52]}  O-O {[%clk 0:02:54]} 8. h3 {[%clk 0:02:52]}  h6 {[%clk 0:02:54]} 9. Nf1 {[%clk 0:02:51]}  Be6 {[%clk 0:02:51]} 10. Ng3 {[%clk 0:02:47]}  d5 {[%clk 0:02:45]} 11. Qe2 {[%clk 0:02:46]}  dxe4 {[%clk 0:02:40]} 12. dxe4 {[%clk 0:02:47]}  Qd7 {[%clk 0:02:11]} 13. Ba4 {[%clk 0:02:45]}  Qd6 {[%clk 0:02:03]} 14. O-O {[%clk 0:02:43]}  Rad8 {[%clk 0:02:02]} 15. Rd1 {[%clk 0:02:41]}  Qe7 {[%clk 0:01:59]} 16. Bxc6 {[%clk 0:02:40]}  bxc6 {[%clk 0:01:58]} 17. Rxd8 {[%clk 0:02:39]}  Rxd8 {[%clk 0:01:58]} 18. Nxe5 {[%clk 0:02:39]}  Qd6 {[%clk 0:01:26]} 19. Bf4 {[%clk 0:02:01]}  g5 {[%clk 0:01:26]} 20. Nxf7 {[%clk 0:02:00]}  Qxf4 {[%clk 0:01:25]} 21. Nxd8 {[%clk 0:02:01]}  Bxh3 {[%clk 0:01:19]} 22. Qf3 {[%clk 0:01:53]}  Bd7 {[%clk 0:00:59]} 23. Rd1 {[%clk 0:01:34]}  Bg4 {[%clk 0:00:46]} 24. Qxf4 {[%clk 0:00:47]}  gxf4 {[%clk 0:00:46]} 25. Rd3 {[%clk 0:00:43]}  fxg3 {[%clk 0:00:39]} 26. Rxg3 {[%clk 0:00:44]}  Bd6 {[%clk 0:00:31]} 27. Rd3 {[%clk 0:00:44]}  Nxe4 {[%clk 0:00:30]} 28. Nxc6 {[%clk 0:00:44]}  Bd7 {[%clk 0:00:26]} 29. Ne5 {[%clk 0:00:41]}  Be6 {[%clk 0:00:26]} 30. Nf3 {[%clk 0:00:37]}  Kg7 {[%clk 0:00:25]} 31. b3 {[%clk 0:00:36]}  Bf5 {[%clk 0:00:24]} 32. Nd4 {[%clk 0:00:36]}  Bd7 {[%clk 0:00:24]} 33. Re3 {[%clk 0:00:35]}  Nf6 {[%clk 0:00:23]} 34. Rf3 {[%clk 0:00:27]}  Kg6 {[%clk 0:00:22]} 35. g3 {[%clk 0:00:26]}  h5 {[%clk 0:00:21]} 36. Rd3 {[%clk 0:00:27]}  Ng4 {[%clk 0:00:20]} 37. c4 {[%clk 0:00:27]}  Bc8 {[%clk 0:00:18]} 38. Nb5 {[%clk 0:00:27]}  Bc5 {[%clk 0:00:18]} 39. Nxc7 {[%clk 0:00:25]}  Nxf2 {[%clk 0:00:17]} 40. Rd5 {[%clk 0:00:25]}  Ne4+ {[%clk 0:00:17]} 41. Kh2 {[%clk 0:00:23]}  Bd6 {[%clk 0:00:16]} 42. Nb5 {[%clk 0:00:24]}  Bxg3+ {[%clk 0:00:16]} 43. Kg2 {[%clk 0:00:25]}  Bb7 {[%clk 0:00:15]} 44. Rd8 {[%clk 0:00:23]}  h4 {[%clk 0:00:14]} 45. Kf1 {[%clk 0:00:23]}  h3 {[%clk 0:00:13]} 46. Rh8 {[%clk 0:00:23]}  h2 {[%clk 0:00:13]} 47. Nd4 {[%clk 0:00:24]}  Nd2+ {[%clk 0:00:13]} 48. Ke2 {[%clk 0:00:24]}  h1=Q {[%clk 0:00:10]} 49. Rxh1 {[%clk 0:00:25]}  Bxh1 {[%clk 0:00:10]} 50. Kxd2 {[%clk 0:00:26]}  Kf6 {[%clk 0:00:08]} 51. Nb5 {[%clk 0:00:25]}  Bc6 {[%clk 0:00:08]} 52. Nd4 {[%clk 0:00:26]}  Be8 {[%clk 0:00:07]} 53. Kd3 {[%clk 0:00:25]}  Bd6 {[%clk 0:00:04]} 54. Ke4 {[%clk 0:00:24]}  Bd7 {[%clk 0:00:04]} 55. Kd5 {[%clk 0:00:25]}  Bc7 {[%clk 0:00:04]} 56. c5 {[%clk 0:00:21]}  Be8 {[%clk 0:00:04]} 57. c6 {[%clk 0:00:20]}  Bb6 {[%clk 0:00:05]} 58. Nb5 {[%clk 0:00:20]}  Ke7 {[%clk 0:00:04]} 59. Nd6 {[%clk 0:00:17]}  Bf7+ {[%clk 0:00:03]} 60. Nxf7 {[%clk 0:00:17]}  Kxf7 {[%clk 0:00:04]} 61. Kd6 {[%clk 0:00:17]}  Kf6 {[%clk 0:00:04]} 62. c7 {[%clk 0:00:17]}  Bxc7+ {[%clk 0:00:05]} 63. Kxc7 {[%clk 0:00:18]}  Ke5 {[%clk 0:00:06]} 64. Kb6 {[%clk 0:00:18]}  Kd4 {[%clk 0:00:07]} 65. Kxa5 {[%clk 0:00:19]}  Kc3 {[%clk 0:00:07]} 66. b4 {[%clk 0:00:20]}  Kb2 {[%clk 0:00:08]} 67. b5 {[%clk 0:00:18]}  Kxa2 {[%clk 0:00:07]} 68. b6 {[%clk 0:00:19]} 1-0


[Site "https://www.chess.com"]

[Event "Titled Tuesday Blitz May 9 Early 2023"]
[White "sebastianmarinp"]
[Black "Beerdsen, Thomas"]
[BlackFideId "1030108"]
[WhiteElo "2438"]
[BlackElo "2549"]
[Result "0-1"]
[Round "01"]
[TimeControl "180+2"]
[Date "2023.05.09"]
[WhiteClock "0:00:00"]
[BlackClock "0:02:09"]

1. e4 {[%clk 0:02:58]}  c5 {[%clk 0:02:59]} 2. Nf3 {[%clk 0:02:57]}  Nc6 {[%clk 0:03:00]} 3. d4 {[%clk 0:02:57]}  cxd4 {[%clk 0:03:01]} 4. Nxd4 {[%clk 0:02:57]}  Nf6 {[%clk 0:03:02]} 5. Nc3 {[%clk 0:02:57]}  h5 {[%clk 0:03:02]} 6. Bg5 {[%clk 0:02:54]}  Qa5 {[%clk 0:03:02]} 7. Bxf6 {[%clk 0:02:22]}  gxf6 {[%clk 0:03:03]} 8. Nb3 {[%clk 0:02:12]}  Qe5 {[%clk 0:03:02]} 9. g3 {[%clk 0:02:07]}  e6 {[%clk 0:03:02]} 10. f4 {[%clk 0:02:07]}  Qd6 {[%clk 0:03:03]} 11. Qf3 {[%clk 0:01:52]}  a6 {[%clk 0:03:02]} 12. Bd3 {[%clk 0:01:37]}  b5 {[%clk 0:03:02]} 13. O-O-O {[%clk 0:01:34]}  Qc7 {[%clk 0:02:59]} 14. Kb1 {[%clk 0:01:32]}  Bb7 {[%clk 0:02:59]} 15. Rhe1 {[%clk 0:01:29]}  Bb4 {[%clk 0:02:58]} 16. Bf1 {[%clk 0:01:09]}  Ne7 {[%clk 0:02:50]} 17. Re3 {[%clk 0:01:02]}  Rc8 {[%clk 0:02:50]} 18. a3 {[%clk 0:00:38]}  Bxc3 {[%clk 0:02:45]} 19. Rxc3 {[%clk 0:00:39]}  Qb8 {[%clk 0:02:45]} 20. Nc5 {[%clk 0:00:24]}  d5 {[%clk 0:02:45]} 21. Nxb7 {[%clk 0:00:14]}  Qxb7 {[%clk 0:02:46]} 22. Rxc8+ {[%clk 0:00:11]}  Qxc8 {[%clk 0:02:47]} 23. exd5 {[%clk 0:00:07]}  Nxd5 {[%clk 0:02:47]} 24. f5 {[%clk 0:00:07]}  Qc6 {[%clk 0:02:40]} 25. fxe6 {[%clk 0:00:07]}  fxe6 {[%clk 0:02:41]} 26. Bh3 {[%clk 0:00:07]}  Kf7 {[%clk 0:02:39]} 27. Re1 {[%clk 0:00:06]}  f5 {[%clk 0:02:32]} 28. Bg2 {[%clk 0:00:06]}  Qc4 {[%clk 0:02:25]} 29. Qe2 {[%clk 0:00:05]}  Qxe2 {[%clk 0:02:23]} 30. Rxe2 {[%clk 0:00:06]}  Nf6 {[%clk 0:02:22]} 31. Rd2 {[%clk 0:00:06]}  h4 {[%clk 0:02:23]} 32. gxh4 {[%clk 0:00:05]}  Rxh4 {[%clk 0:02:23]} 33. Rd6 {[%clk 0:00:04]}  Rxh2 {[%clk 0:02:23]} 34. Bb7 {[%clk 0:00:04]}  a5 {[%clk 0:02:23]} 35. Rb6 {[%clk 0:00:04]}  f4 {[%clk 0:02:14]} 36. Rxb5 {[%clk 0:00:04]}  Rh3 {[%clk 0:02:15]} 37. Rb3 {[%clk 0:00:03]}  Rh1+ {[%clk 0:02:09]} 38. Ka2 {[%clk 0:00:03]}  Rc1 {[%clk 0:02:09]} 39. Rf3 {[%clk 0:00:02]}  e5 {[%clk 0:02:10]} 40. c3 {[%clk 0:00:02]}  Kg6 {[%clk 0:02:07]} 41. Kb3 {[%clk 0:00:02]}  Kg5 {[%clk 0:02:08]} 42. Ka4 {[%clk 0:00:02]}  e4 {[%clk 0:02:08]} 43. Rf2 {[%clk 0:00:01]}  e3 {[%clk 0:02:09]} 44. Rg2+ {[%clk 0:00:01]}  Kf5 {[%clk 0:02:09]} 45. Bf3 {[%clk 0:00:00]}  Rf1 {[%clk 0:02:09]} 0-1


[Site "https://www.chess.com"]

[Event "Titled Tuesday Blitz May 9 Early 2023"]
[White "Fernandez Garcia, Gumersindo"]
[Black "Peng, Li Min"]
[WhiteFideId "24516740"]
[BlackFideId "14112620"]
[WhiteElo "2093"]
[BlackElo "2436"]
[Result "0-1"]
[Round "01"]
[TimeControl "180+2"]
[Date "2023.05.09"]
[WhiteClock "0:00:05"]
[BlackClock "0:00:21"]

1. d4 {[%clk 0:03:00]}  Nf6 {[%clk 0:02:58]} 2. c4 {[%clk 0:02:54]}  e6 {[%clk 0:02:59]} 3. Nf3 {[%clk 0:02:53]}  d5 {[%clk 0:02:59]} 4. g3 {[%clk 0:02:53]}  Be7 {[%clk 0:02:59]} 5. Bg2 {[%clk 0:02:53]}  O-O {[%clk 0:03:00]} 6. Qc2 {[%clk 0:02:54]}  Nbd7 {[%clk 0:02:59]} 7. Nbd2 {[%clk 0:02:52]}  a5 {[%clk 0:02:58]} 8. O-O {[%clk 0:02:52]}  c5 {[%clk 0:02:59]} 9. cxd5 {[%clk 0:02:34]}  Nxd5 {[%clk 0:02:58]} 10. a3 {[%clk 0:02:26]}  b5 {[%clk 0:02:50]} 11. e4 {[%clk 0:02:23]}  N5b6 {[%clk 0:02:49]} 12. Rd1 {[%clk 0:02:15]}  c4 {[%clk 0:02:47]} 13. e5 {[%clk 0:02:06]}  Bb7 {[%clk 0:02:47]} 14. Ne4 {[%clk 0:02:06]}  h6 {[%clk 0:02:36]} 15. Nc5 {[%clk 0:01:58]}  Bd5 {[%clk 0:02:32]} 16. Ne4 {[%clk 0:01:47]}  b4 {[%clk 0:02:28]} 17. Bf4 {[%clk 0:01:09]}  Qc8 {[%clk 0:01:48]} 18. Nd6 {[%clk 0:01:07]}  Bxd6 {[%clk 0:01:48]} 19. exd6 {[%clk 0:01:07]}  Qc6 {[%clk 0:01:47]} 20. Ne1 {[%clk 0:01:04]}  Bxg2 {[%clk 0:01:46]} 21. Nxg2 {[%clk 0:01:05]}  Nd5 {[%clk 0:01:45]} 22. Rac1 {[%clk 0:01:00]}  Rfc8 {[%clk 0:01:44]} 23. Qe4 {[%clk 0:00:52]}  N7f6 {[%clk 0:01:42]} 24. Qf3 {[%clk 0:00:34]}  c3 {[%clk 0:01:42]} 25. Be5 {[%clk 0:00:25]}  bxa3 {[%clk 0:01:14]} 26. bxc3 {[%clk 0:00:23]}  Nxc3 {[%clk 0:01:07]} 27. Qxc6 {[%clk 0:00:23]}  Rxc6 {[%clk 0:01:08]} 28. Kf1 {[%clk 0:00:18]}  Nxd1 {[%clk 0:01:01]} 29. Rxc6 {[%clk 0:00:18]}  a2 {[%clk 0:01:02]} 30. d5 {[%clk 0:00:17]}  Nxd5 {[%clk 0:00:52]} 31. d7 {[%clk 0:00:17]}  N1c3 {[%clk 0:00:53]} 32. Bxc3 {[%clk 0:00:16]}  Nxc3 {[%clk 0:00:52]} 33. Rc8+ {[%clk 0:00:16]}  Kh7 {[%clk 0:00:53]} 34. d8=Q {[%clk 0:00:15]}  a1=Q+ {[%clk 0:00:51]} 35. Ne1 {[%clk 0:00:16]}  Rxc8 {[%clk 0:00:51]} 36. Qxc8 {[%clk 0:00:16]}  Nd5 {[%clk 0:00:45]} 37. Qb7 {[%clk 0:00:16]}  Qf6 {[%clk 0:00:41]} 38. Kg2 {[%clk 0:00:15]}  Qe7 {[%clk 0:00:38]} 39. Qa6 {[%clk 0:00:14]}  Qb4 {[%clk 0:00:37]} 40. Nf3 {[%clk 0:00:15]}  a4 {[%clk 0:00:30]} 41. Qa7 {[%clk 0:00:15]}  f6 {[%clk 0:00:24]} 42. h4 {[%clk 0:00:14]}  h5 {[%clk 0:00:22]} 43. Qf7 {[%clk 0:00:13]}  Qg4 {[%clk 0:00:21]} 44. Nh2 {[%clk 0:00:13]}  Nf4+ {[%clk 0:00:21]} 45. Kh1 {[%clk 0:00:05]}  Qd1+ {[%clk 0:00:21]} 0-1


[Site "https://www.chess.com"]

[Event "Titled Tuesday Blitz May 9 Early 2023"]
[White "Garakov, Mikhael"]
[Black "Fernandez Guillen, Ernesto J."]
[WhiteFideId "4169034"]
[BlackFideId "3512428"]
[WhiteElo "2347"]
[BlackElo "2429"]
[Result "0-1"]
[Round "01"]
[TimeControl "180+2"]
[Date "2023.05.09"]
[WhiteClock "0:00:01"]
[BlackClock "0:00:28"]

1. e4 {[%clk 0:02:59]}  e5 {[%clk 0:02:52]} 2. Nf3 {[%clk 0:02:58]}  Nc6 {[%clk 0:02:45]} 3. Bb5 {[%clk 0:02:56]}  f5 {[%clk 0:02:44]} 4. Nc3 {[%clk 0:02:48]}  Nf6 {[%clk 0:02:41]} 5. Qe2 {[%clk 0:02:32]}  Qe7 {[%clk 0:02:40]} 6. O-O {[%clk 0:02:20]}  Nd4 {[%clk 0:02:30]} 7. Nxd4 {[%clk 0:02:16]}  exd4 {[%clk 0:02:31]} 8. Nd5 {[%clk 0:02:15]}  Nxd5 {[%clk 0:02:30]} 9. exd5 {[%clk 0:02:16]}  Qxe2 {[%clk 0:02:29]} 10. Bxe2 {[%clk 0:02:17]}  c6 {[%clk 0:02:28]} 11. Bc4 {[%clk 0:02:11]}  b5 {[%clk 0:02:26]} 12. Bb3 {[%clk 0:02:10]}  c5 {[%clk 0:02:21]} 13. Re1+ {[%clk 0:02:10]}  Kd8 {[%clk 0:02:19]} 14. d3 {[%clk 0:02:10]}  Bb7 {[%clk 0:02:17]} 15. a4 {[%clk 0:01:54]}  a6 {[%clk 0:02:10]} 16. Bf4 {[%clk 0:01:47]}  Be7 {[%clk 0:02:03]} 17. d6 {[%clk 0:01:29]}  Bf6 {[%clk 0:02:01]} 18. Bd2 {[%clk 0:01:28]}  Kc8 {[%clk 0:01:53]} 19. Ba5 {[%clk 0:01:16]}  Bd8 {[%clk 0:01:20]} 20. Bxd8 {[%clk 0:01:15]}  Kxd8 {[%clk 0:01:20]} 21. Re7 {[%clk 0:01:13]}  g6 {[%clk 0:01:18]} 22. Rae1 {[%clk 0:01:11]}  Bc6 {[%clk 0:01:19]} 23. a5 {[%clk 0:00:51]}  Rb8 {[%clk 0:01:02]} 24. h4 {[%clk 0:00:46]}  Kc8 {[%clk 0:00:50]} 25. Rg7 {[%clk 0:00:34]}  Kb7 {[%clk 0:00:46]} 26. Ree7 {[%clk 0:00:34]}  Rbf8 {[%clk 0:00:43]} 27. f4 {[%clk 0:00:20]}  Kc8 {[%clk 0:00:40]} 28. Kf2 {[%clk 0:00:20]}  Rf6 {[%clk 0:00:39]} 29. Rxh7 {[%clk 0:00:18]}  Rxh7 {[%clk 0:00:36]} 30. Rxh7 {[%clk 0:00:19]}  Rxd6 {[%clk 0:00:36]} 31. Bf7 {[%clk 0:00:17]}  Bd5 {[%clk 0:00:36]} 32. Bxd5 {[%clk 0:00:14]}  Rxd5 {[%clk 0:00:37]} 33. Rg7 {[%clk 0:00:12]}  Rd6 {[%clk 0:00:37]} 34. Rg8+ {[%clk 0:00:12]}  Kc7 {[%clk 0:00:37]} 35. g4 {[%clk 0:00:11]}  fxg4 {[%clk 0:00:35]} 36. Kg3 {[%clk 0:00:12]}  c4 {[%clk 0:00:36]} 37. Kxg4 {[%clk 0:00:12]}  b4 {[%clk 0:00:36]} 38. b3 {[%clk 0:00:11]}  cxb3 {[%clk 0:00:35]} 39. cxb3 {[%clk 0:00:11]}  Rc6 {[%clk 0:00:35]} 40. Kg5 {[%clk 0:00:11]}  Rc3 {[%clk 0:00:36]} 41. Rxg6 {[%clk 0:00:11]}  Rxd3 {[%clk 0:00:36]} 42. f5 {[%clk 0:00:07]}  Rf3 {[%clk 0:00:31]} 43. Kg4 {[%clk 0:00:06]}  Rf1 {[%clk 0:00:31]} 44. f6 {[%clk 0:00:02]}  d3 {[%clk 0:00:31]} 45. Rg5 {[%clk 0:00:03]}  d2 {[%clk 0:00:30]} 46. Rd5 {[%clk 0:00:03]}  d1=Q+ {[%clk 0:00:28]} 47. Rxd1 {[%clk 0:00:03]}  Rxd1 {[%clk 0:00:29]} 48. h5 {[%clk 0:00:03]}  Kd6 {[%clk 0:00:28]} 49. Kg5 {[%clk 0:00:01]}  Ke6 {[%clk 0:00:28]} 0-1


[Site "https://www.chess.com"]